[Event "44th Chess Olympiad Open 2022"]
[Site "Chennai"]
[Date "2022.08.08"]
[Round "10.29"]
[White "Amartuvshin, Ganzorig"]
[Black "Mushore, Emarald Takudzwa"]
[Result "1-0"]
[WhiteElo "2409"]
[BlackElo "2153"]
[Annotator "RC"]
[PlyCount "90"]
[EventDate "2022.??.??"]
[TimeControl "60"]

1. d4 {[%emt 0:00:04]} Nf6 {[%emt 0:00:13]} 2. c4 {[%emt 0:00:07]} e6 {[%emt 0:
00:00]} 3. Nf3 {[%emt 0:00:05]} d5 {[%emt 0:00:17]} 4. Nc3 {[%emt 0:00:07]} Be7
{[%emt 0:00:20]} 5. Bf4 {[%emt 0:00:07]} O-O {[%emt 0:00:14]} 6. a3 {[%emt 0:
00:00]} dxc4 {[%emt 0:02:25]} 7. e4 {[%emt 0:00:32]} c5 {[%emt 0:00:23]} 8.
dxc5 {[%emt 0:00:19]} Qa5 {[%emt 0:07:04]} 9. Nd2 {[%emt 0:20:31]} Qxc5 {
[%emt 0:05:19]} 10. Bxc4 {[%emt 0:00:25]} Nc6 {[%emt 0:03:45]} 11. b4 {[%emt 0:
00:00]} Qh5 {[%emt 0:03:58]} 12. O-O {[%emt 0:13:11]} e5 {[%emt 0:07:39]} 13.
Qxh5 {[%emt 0:00:00]} Nxh5 {[%emt 0:00:03]} 14. Be3 {[%emt 0:00:00]} Be6 {
[%emt 0:02:03]} 15. Bxe6 {[%emt 0:02:21]} fxe6 {[%emt 0:00:07]} 16. Nb3 {
[%emt 0:00:22]} Rac8 {[%emt 0:12:47]} 17. Rac1 {[%emt 0:01:36]} Rfd8 {[%emt 0:
00:00]} 18. Rfd1 {[%emt 0:03:59]} Nf4 {[%emt 0:11:45]} 19. Rxd8+ {[%emt 0:00:
00]} Rxd8 {[%emt 0:06:25]} 20. g3 {[%emt 0:00:25]} Nd3 {[%emt 0:04:08]} 21. Rc2
{[%emt 0:04:28]} Ne1 {[%emt 0:02:27]} 22. Rc1 {[%emt 0:00:26]} Nf3+ {[%emt 0:
00:00]} 23. Kg2 {[%emt 0:00:29]} Nfd4 {[%emt 0:00:06]} 24. Bxd4 {[%emt 0:00:34]
} exd4 {[%emt 0:12:06]} 25. Nb1 {[%emt 0:00:12]} a6 {[%emt 0:01:03]} 26. N1d2 {
[%emt 0:01:08]} e5 {[%emt 0:01:37]} 27. Kf1 {[%emt 0:00:57]} Kf7 {[%emt 0:00:
00]} 28. Ke2 {[%emt 0:00:43]} Ke6 {[%emt 0:01:22]} 29. Kd3 {[%emt 0:00:19]} Rf8
{[%emt 0:00:37]} 30. f3 {[%emt 0:00:17]} g5 {[%emt 0:01:40]} 31. Ke2 {[%emt 0:
00:00]} h5 {[%emt 0:00:53]} 32. h3 {[%emt 0:02:10]} Rd8 {[%emt 0:01:58]} 33.
Kd3 {[%emt 0:01:55]} Rf8 {[%emt 0:00:10]} 34. Rg1 {[%emt 0:02:58]} Rg8 {
[%emt 0:00:52]} 35. Nc4 {[%emt 0:01:20]} Rf8 {[%emt 0:00:16]} 36. Nbd2 {
[%emt 0:00:17]} Rc8 {[%emt 0:01:25]} 37. Rb1 {[%emt 0:01:24]} b5 {[%emt 0:00:
00]} 38. Nb6 {[%emt 0:00:24]} Rb8 {[%emt 0:00:04]} 39. Nd5 {[%emt 0:00:18]} Rc8
{[%emt 0:00:27]} 40. Nb3 {[%emt 0:00:39]} Bd6 {[%emt 0:00:35]} 41. Rc1 {
[%emt 0:31:38]} Na7 {[%emt 0:30:51]} 42. Rh1 {[%emt 0:02:35]} Nc6 {[%emt 0:00:
00]} 43. Rc1 {[%emt 0:03:17]} Na7 {[%emt 0:00:00]} 44. Rxc8 {[%emt 0:01:35]}
Nxc8 {[%emt 0:00:00]} 45. f4 {[%emt 0:02:59]} gxf4 {[%emt 0:01:46]} 1-0

[Event "44th Chess Olympiad Open 2022"]
[Site "Chennai"]
[Date "2022.08.08"]
[Round "10.29"]
[White "Makoto, Rodwell"]
[Black "Batsuren, Dambasuren"]
[Result "0-1"]
[WhiteElo "2346"]
[BlackElo "2518"]
[Annotator "RC"]
[PlyCount "78"]
[EventDate "2022.??.??"]
[TimeControl "60"]

1. Nf3 {[%emt 0:02:16]} Nf6 {[%emt 0:00:18]} 2. c4 {[%emt 0:00:30]} e6 {
[%emt 0:00:07]} 3. g3 {[%emt 0:00:10]} d5 {[%emt 0:00:10]} 4. d4 {[%emt 0:00:
00]} dxc4 {[%emt 0:00:51]} 5. Qa4+ {[%emt 0:01:28]} Nc6 {[%emt 0:01:00]} 6.
Qxc4 {[%emt 0:01:15]} Qd5 {[%emt 0:00:53]} 7. Qxd5 {[%emt 0:04:56]} exd5 {
[%emt 0:00:26]} 8. Bg2 {[%emt 0:01:41]} Nb4 {[%emt 0:02:35]} 9. Na3 {[%emt 0:
00:00]} c6 {[%emt 0:01:00]} 10. O-O {[%emt 0:00:40]} Be7 {[%emt 0:01:47]} 11.
Bd2 {[%emt 0:00:43]} a5 {[%emt 0:03:49]} 12. Rfc1 {[%emt 0:00:27]} Bf5 {
[%emt 0:00:29]} 13. Ne1 {[%emt 0:03:19]} Ne4 {[%emt 0:02:09]} 14. Bxb4 {
[%emt 0:17:47]} Bxb4 {[%emt 0:04:18]} 15. Nac2 {[%emt 0:00:34]} Bd2 {[%emt 0:
00:00]} 16. Rd1 {[%emt 0:01:16]} Bh6 {[%emt 0:02:53]} 17. Nd3 {[%emt 0:03:30]}
Nd6 {[%emt 0:01:19]} 18. Nce1 {[%emt 0:02:49]} O-O {[%emt 0:00:59]} 19. e3 {
[%emt 0:00:48]} Rfe8 {[%emt 0:00:36]} 20. Nc5 {[%emt 0:02:17]} a4 {[%emt 0:00:
00]} 21. h3 {[%emt 0:10:39]} g6 {[%emt 0:11:23]} 22. g4 {[%emt 0:06:34]} Bc8 {
[%emt 0:00:00]} 23. Nf3 {[%emt 0:01:17]} Bg7 {[%emt 0:00:00]} 24. b3 {[%emt 0:
00:00]} a3 {[%emt 0:01:00]} 25. Rac1 {[%emt 0:00:16]} h6 {[%emt 0:09:13]} 26.
Ne5 {[%emt 0:06:18]} g5 {[%emt 0:01:20]} 27. Rc2 {[%emt 0:07:08]} Re7 {[%emt 0:
00:00]} 28. Bf3 {[%emt 0:05:14]} Bxe5 {[%emt 0:07:35]} 29. dxe5 {[%emt 0:00:36]
} Rxe5 {[%emt 0:07:14]} 30. e4 {[%emt 0:10:20]} dxe4 {[%emt 0:00:00]} 31. Rxd6
{[%emt 0:00:13]} exf3 {[%emt 0:00:00]} 32. Rd8+ {[%emt 0:00:35]} Kg7 {[%emt 0:
00:00]} 33. Rc3 {[%emt 0:01:51]} Re2 {[%emt 0:00:00]} 34. Rxf3 {[%emt 0:01:16]}
Bxg4 {[%emt 0:00:00]} 35. Rxf7+ {[%emt 0:01:23]} Kxf7 {[%emt 0:00:00]} 36. Rxa8
{[%emt 0:00:03]} Bf3 {[%emt 0:00:00]} 37. Rxa3 {[%emt 0:00:35]} Re1+ {[%emt 0:
00:00]} 38. Kh2 {[%emt 0:00:02]} h5 {[%emt 0:02:39]} 39. b4 {[%emt 0:00:52]}
Rh1+ {[%emt 0:00:50]} 0-1

[Event "44th Chess Olympiad Open 2022"]
[Site "Chennai"]
[Date "2022.08.08"]
[Round "10.29"]
[White "Zhemba, Jemusse"]
[Black "Bilguun, Sumiya"]
[Result "1/2-1/2"]
[WhiteElo "2162"]
[BlackElo "2463"]
[Annotator "RC"]
[PlyCount "85"]
[EventDate "2022.??.??"]
[TimeControl "60"]

1. Nf3 {[%emt 0:00:04]} c5 {[%emt 0:00:07]} 2. g3 {[%emt 0:00:31]} g6 {[%emt 0:
00:00]} 3. Bg2 {[%emt 0:00:19]} Bg7 {[%emt 0:00:07]} 4. O-O {[%emt 0:00:15]}
Nc6 {[%emt 0:00:05]} 5. c4 {[%emt 0:01:33]} e5 {[%emt 0:00:10]} 6. Nc3 {
[%emt 0:00:45]} d6 {[%emt 0:00:19]} 7. d3 {[%emt 0:00:47]} Nge7 {[%emt 0:00:18]
} 8. a3 {[%emt 0:00:47]} a5 {[%emt 0:00:09]} 9. Ne1 {[%emt 0:02:01]} Be6 {
[%emt 0:02:24]} 10. Nc2 {[%emt 0:00:29]} d5 {[%emt 0:09:28]} 11. cxd5 {[%emt 0:
00:00]} Nxd5 {[%emt 0:00:13]} 12. Ne3 {[%emt 0:00:15]} Nb6 {[%emt 0:10:15]} 13.
Ne4 {[%emt 0:02:55]} Qe7 {[%emt 0:02:11]} 14. Nc4 {[%emt 0:06:40]} Nxc4 {
[%emt 0:11:27]} 15. dxc4 {[%emt 0:00:03]} Rd8 {[%emt 0:00:21]} 16. Qa4 {
[%emt 0:00:37]} O-O {[%emt 0:03:34]} 17. Bg5 {[%emt 0:01:28]} f6 {[%emt 0:00:
00]} 18. Be3 {[%emt 0:00:06]} Nd4 {[%emt 0:03:31]} 19. Nc3 {[%emt 0:02:19]} Qf7
{[%emt 0:09:49]} 20. Bxd4 {[%emt 0:02:14]} cxd4 {[%emt 0:01:05]} 21. Nd5 {
[%emt 0:00:21]} f5 {[%emt 0:01:07]} 22. Rac1 {[%emt 0:05:46]} Ra8 {[%emt 0:00:
00]} 23. Nb6 {[%emt 0:01:59]} Ra6 {[%emt 0:00:55]} 24. Qb5 {[%emt 0:00:36]} e4
{[%emt 0:00:12]} 25. c5 {[%emt 0:02:48]} Qc7 {[%emt 0:13:06]} 26. Kh1 {[%emt 0:
00:00]} h5 {[%emt 0:02:00]} 27. f3 {[%emt 0:01:58]} h4 {[%emt 0:04:18]} 28.
fxe4 {[%emt 0:01:03]} hxg3 {[%emt 0:05:04]} 29. exf5 {[%emt 0:01:52]} gxf5 {
[%emt 0:00:38]} 30. Qd3 {[%emt 0:01:31]} Bh6 {[%emt 0:03:30]} 31. Qxg3+ {
[%emt 0:00:16]} Qxg3 {[%emt 0:00:10]} 32. hxg3 {[%emt 0:00:06]} Bxc1 {[%emt 0:
00:00]} 33. Rxc1 {[%emt 0:00:12]} Rf7 {[%emt 0:02:03]} 34. Rd1 {[%emt 0:00:14]}
Rc7 {[%emt 0:02:15]} 35. b4 {[%emt 0:05:00]} axb4 {[%emt 0:00:07]} 36. axb4 {
[%emt 0:00:01]} Bb3 {[%emt 0:00:33]} 37. Rxd4 {[%emt 0:00:56]} Ra1+ {[%emt 0:
00:00]} 38. Kh2 {[%emt 0:00:15]} Rh7+ {[%emt 0:00:36]} 39. Rh4 {[%emt 0:00:23]}
Re7 {[%emt 0:01:53]} 40. Bf3 {[%emt 0:00:14]} Be6 {[%emt 0:06:50]} 41. Kg2 {
[%emt 0:30:57]} Kg7 {[%emt 0:05:34]} 42. Kf2 {[%emt 0:00:00]} Rb1 {[%emt 0:00:
00]} 43. Rf4 {[%emt 0:00:00]} 1/2-1/2

[Event "44th Chess Olympiad Open 2022"]
[Site "Chennai"]
[Date "2022.08.08"]
[Round "10.30"]
[White "Taher, Yoseph Theolifus"]
[Black "Wong, Yinn Long"]
[Result "1/2-1/2"]
[WhiteElo "2463"]
[BlackElo "2381"]
[Annotator "RC"]
[PlyCount "78"]
[EventDate "2022.??.??"]
[TimeControl "60"]

1. e4 {[%emt 0:00:19]} c5 {[%emt 0:00:23]} 2. Nf3 {[%emt 0:00:12]} Nc6 {
[%emt 0:00:15]} 3. Bb5 {[%emt 0:00:21]} d6 {[%emt 0:00:43]} 4. O-O {[%emt 0:00:
00]} Bd7 {[%emt 0:00:08]} 5. Re1 {[%emt 0:00:07]} Nf6 {[%emt 0:00:05]} 6. c3 {
[%emt 0:00:04]} a6 {[%emt 0:00:08]} 7. Bf1 {[%emt 0:00:05]} Bg4 {[%emt 0:00:33]
} 8. d4 {[%emt 0:00:06]} Bxf3 {[%emt 0:02:17]} 9. gxf3 {[%emt 0:00:05]} cxd4 {
[%emt 0:00:09]} 10. cxd4 {[%emt 0:00:05]} d5 {[%emt 0:01:38]} 11. e5 {[%emt 0:
00:00]} Nh5 {[%emt 0:00:12]} 12. e6 {[%emt 0:02:07]} g6 {[%emt 0:02:35]} 13.
exf7+ {[%emt 0:01:14]} Kxf7 {[%emt 0:00:02]} 14. Bh3 {[%emt 0:00:06]} Ng7 {
[%emt 0:19:12]} 15. Bg5 {[%emt 0:43:04]} Qd6 {[%emt 0:00:00]} 16. Qd2 {[%emt 0:
00:00]} e6 {[%emt 0:00:00]} 17. Nc3 {[%emt 0:00:11]} Be7 {[%emt 0:00:00]} 18.
Bf4 {[%emt 0:16:48]} Qd7 {[%emt 0:17:08]} 19. Be5 {[%emt 0:00:00]} Bf6 {
[%emt 0:09:18]} 20. Bxf6 {[%emt 0:00:00]} Kxf6 {[%emt 0:00:01]} 21. Qf4+ {
[%emt 0:00:00]} Nf5 {[%emt 0:00:17]} 22. Bxf5 {[%emt 0:00:00]} exf5 {[%emt 0:
00:00]} 23. Re5 {[%emt 0:04:12]} Nxe5 {[%emt 0:03:42]} 24. Qxe5+ {[%emt 0:00:
00]} Kf7 {[%emt 0:00:38]} 25. Nxd5 {[%emt 0:00:06]} Rhe8 {[%emt 0:01:01]} 26.
Qf6+ {[%emt 0:00:06]} Kg8 {[%emt 0:00:04]} 27. Rc1 {[%emt 0:00:31]} Re6 {
[%emt 0:05:45]} 28. Rc7 {[%emt 0:02:41]} Qxc7 {[%emt 0:04:04]} 29. Qxe6+ {
[%emt 0:00:04]} Qf7 {[%emt 0:00:04]} 30. Qd6 {[%emt 0:00:13]} Rf8 {[%emt 0:00:
00]} 31. h4 {[%emt 0:02:19]} f4 {[%emt 0:13:08]} 32. Qe5 {[%emt 0:01:36]} Qg7 {
[%emt 0:01:14]} 33. Qe4 {[%emt 0:00:37]} g5 {[%emt 0:03:32]} 34. h5 {[%emt 0:
00:00]} g4 {[%emt 0:03:26]} 35. Qe6+ {[%emt 0:00:00]} Qf7 {[%emt 0:04:21]} 36.
Qe5 {[%emt 0:00:48]} Qg7 {[%emt 0:03:08]} 37. Qe6+ {[%emt 0:10:16]} Qf7 {
[%emt 0:00:00]} 38. Qe5 {[%emt 0:03:01]} Qg7 {[%emt 0:00:00]} 39. Qe6+ {
[%emt 0:05:27]} Qf7 {[%emt 0:00:00]} 1/2-1/2

[Event "44th Chess Olympiad Open 2022"]
[Site "Chennai"]
[Date "2022.08.08"]
[Round "10.30"]
[White "Kurniawan, Muhamad Agus"]
[Black "Poh, Yu Tian"]
[Result "1/2-1/2"]
[WhiteElo "2328"]
[BlackElo "2118"]
[Annotator "RC"]
[PlyCount "239"]
[EventDate "2022.??.??"]
[TimeControl "60"]

1. e4 {[%emt 0:00:05]} c5 {[%emt 0:00:04]} 2. Nf3 {[%emt 0:00:53]} d6 {[%emt 0:
00:00]} 3. Bb5+ {[%emt 0:00:34]} Nd7 {[%emt 0:00:06]} 4. d4 {[%emt 0:00:34]}
cxd4 {[%emt 0:00:10]} 5. Qxd4 {[%emt 0:00:03]} a6 {[%emt 0:00:15]} 6. Bxd7+ {
[%emt 0:01:04]} Bxd7 {[%emt 0:00:08]} 7. O-O {[%emt 0:00:35]} e5 {[%emt 0:00:
00]} 8. Qd3 {[%emt 0:01:12]} Rc8 {[%emt 0:00:54]} 9. c4 {[%emt 0:00:54]} b5 {
[%emt 0:05:28]} 10. Nfd2 {[%emt 0:01:02]} Nf6 {[%emt 0:06:03]} 11. Nc3 {
[%emt 0:02:08]} Qb6 {[%emt 0:01:07]} 12. b3 {[%emt 0:12:48]} Be7 {[%emt 0:00:
00]} 13. Bb2 {[%emt 0:05:19]} O-O {[%emt 0:00:45]} 14. Rac1 {[%emt 0:00:23]}
Rc7 {[%emt 0:05:58]} 15. cxb5 {[%emt 0:10:15]} axb5 {[%emt 0:00:58]} 16. b4 {
[%emt 0:00:04]} Rfc8 {[%emt 0:03:18]} 17. a3 {[%emt 0:00:08]} h6 {[%emt 0:00:
00]} 18. h3 {[%emt 0:04:40]} Qb8 {[%emt 0:08:48]} 19. Rfd1 {[%emt 0:04:58]} Rb7
{[%emt 0:04:42]} 20. Nf1 {[%emt 0:07:08]} Be6 {[%emt 0:03:56]} 21. Ne3 {
[%emt 0:03:04]} Bc4 {[%emt 0:11:07]} 22. Qb1 {[%emt 0:03:35]} g6 {[%emt 0:00:
00]} 23. Nxc4 {[%emt 0:05:32]} Rxc4 {[%emt 0:01:43]} 24. Nd5 {[%emt 0:00:02]}
Nxd5 {[%emt 0:04:07]} 25. Rxc4 {[%emt 0:01:59]} Ne3 {[%emt 0:00:02]} 26. Rc6 {
[%emt 0:02:53]} Nxd1 {[%emt 0:00:22]} 27. Qxd1 {[%emt 0:00:02]} Rc7 {[%emt 0:
00:00]} 28. Qc2 {[%emt 0:00:09]} Bd8 {[%emt 0:00:55]} 29. Bc1 {[%emt 0:02:49]}
h5 {[%emt 0:11:08]} 30. a4 {[%emt 0:04:33]} Rxc6 {[%emt 0:00:00]} 31. Qxc6 {
[%emt 0:05:53]} bxa4 {[%emt 0:00:00]} 32. Qxa4 {[%emt 0:08:30]} Bb6 {[%emt 0:
00:00]} 33. Qd7 {[%emt 0:11:49]} Qc7 {[%emt 0:07:28]} 34. Qxc7 {[%emt 0:00:00]}
Bxc7 35. Be3 {[%emt 0:00:00]} Bb8 {[%emt 0:02:50]} 36. g4 {[%emt 0:01:35]} hxg4
{[%emt 0:00:00]} 37. hxg4 {[%emt 0:00:00]} f6 {[%emt 0:05:06]} 38. Bb6 {
[%emt 0:00:00]} Kf7 {[%emt 0:01:38]} 39. Bd8 {[%emt 0:00:00]} Ke6 {[%emt 0:00:
00]} 40. Kg2 {[%emt 0:00:00]} d5 {[%emt 0:02:18]} 41. exd5+ {[%emt 0:28:11]}
Kxd5 {[%emt 0:30:03]} 42. Bxf6 Bd6 {[%emt 0:01:19]} 43. b5 {[%emt 0:00:44]} Kc5
{[%emt 0:00:00]} 44. Kf3 {[%emt 0:00:00]} Kxb5 {[%emt 0:00:00]} 45. Ke4 {
[%emt 0:00:00]} Kc6 {[%emt 0:00:00]} 46. Bxe5 {[%emt 0:01:05]} Bb4 {[%emt 0:00:
00]} 47. Bd4 {[%emt 0:04:44]} Kd6 {[%emt 0:00:00]} 48. Kf4 {[%emt 0:00:35]} Kd5
{[%emt 0:00:00]} 49. Be3 {[%emt 0:01:27]} Be7 {[%emt 0:00:00]} 50. Bb6 {
[%emt 0:00:22]} Ke6 {[%emt 0:00:00]} 51. Bd4 {[%emt 0:00:45]} Kf7 {[%emt 0:00:
00]} 52. Bb6 {[%emt 0:00:31]} Ke6 {[%emt 0:00:00]} 53. f3 {[%emt 0:00:36]} Kf7
{[%emt 0:00:00]} 54. Ke5 {[%emt 0:00:14]} Bf6+ {[%emt 0:00:00]} 55. Kd6 Be7+ {
[%emt 0:00:00]} 56. Kd7 {[%emt 0:00:09]} Bg5 {[%emt 0:02:09]} 57. Bd8 {[%emt 0:
00:00]} Bf4 {[%emt 0:00:00]} 58. Bh4 {[%emt 0:00:21]} Be5 {[%emt 0:00:00]} 59.
Bg5 {[%emt 0:00:15]} Bc3 {[%emt 0:00:00]} 60. Kd6 {[%emt 0:00:18]} Bb4+ {
[%emt 0:00:00]} 61. Kd5 {[%emt 0:00:03]} Bc3 {[%emt 0:00:00]} 62. Be3 {[%emt 0:
00:00]} Bb2 {[%emt 0:00:00]} 63. Bd4 {[%emt 0:00:20]} Bc1 {[%emt 0:00:09]} 64.
Ke5 {[%emt 0:00:23]} Ba3 {[%emt 0:00:00]} 65. Bb6 {[%emt 0:00:21]} Bb2+ {
[%emt 0:00:00]} 66. Kf4 {[%emt 0:00:33]} Bf6 {[%emt 0:00:00]} 67. Be3 {[%emt 0:
00:00]} Be7 {[%emt 0:00:00]} 68. Ke5 {[%emt 0:00:14]} Bf6+ {[%emt 0:00:06]} 69.
Kd5 {[%emt 0:00:43]} Be7 {[%emt 0:00:37]} 70. Bc5 {[%emt 0:01:02]} Bg5 {
[%emt 0:00:00]} 71. Bd6 {[%emt 0:00:18]} Bf6 {[%emt 0:00:00]} 72. Bc7 {[%emt 0:
00:00]} Be7 {[%emt 0:00:00]} 73. Ke5 {[%emt 0:00:22]} Bf6+ {[%emt 0:00:00]} 74.
Kd6 {[%emt 0:00:48]} Be7+ {[%emt 0:00:00]} 75. Kd7 {[%emt 0:00:03]} Bf6 {
[%emt 0:00:00]} 76. Bd8 {[%emt 0:00:01]} Be5 {[%emt 0:00:00]} 77. Bg5 {[%emt 0:
00:00]} Bc3 {[%emt 0:00:00]} 78. Kd6 {[%emt 0:00:02]} Bb4+ {[%emt 0:00:00]} 79.
Kd5 {[%emt 0:00:03]} Ba3 {[%emt 0:00:00]} 80. Bd8 {[%emt 0:00:31]} Bc1 {
[%emt 0:00:00]} 81. Ke4 {[%emt 0:00:23]} Bd2 {[%emt 0:00:00]} 82. Kd3 {[%emt 0:
00:00]} Bf4 {[%emt 0:00:00]} 83. Ke2 {[%emt 0:00:11]} g5 {[%emt 0:00:00]} 84.
Kd3 {[%emt 0:00:33]} Kg6 {[%emt 0:00:00]} 85. Ke4 {[%emt 0:00:07]} Bd6 {
[%emt 0:00:00]} 86. Kd5 {[%emt 0:00:15]} Bf4 {[%emt 0:00:00]} 87. Ke6 {[%emt 0:
00:00]} Be3 {[%emt 0:00:00]} 88. Ke5 {[%emt 0:00:48]} Bf4+ {[%emt 0:00:00]} 89.
Ke4 Bd2 {[%emt 0:00:00]} 90. Bb6 {[%emt 0:00:08]} Bf4 {[%emt 0:00:00]} 91. Bd4
{[%emt 0:01:28]} Bd6 {[%emt 0:00:00]} 92. Be5 {[%emt 0:00:47]} Bb4 {[%emt 0:00:
00]} 93. Bg3 {[%emt 0:01:34]} Bd2 {[%emt 0:00:00]} 94. Bd6 {[%emt 0:00:17]} Bc1
{[%emt 0:00:45]} 95. Kd3 {[%emt 0:00:43]} Bb2 {[%emt 0:00:00]} 96. Bb4 {
[%emt 0:01:19]} Be5 {[%emt 0:00:00]} 97. Bc3 {[%emt 0:00:22]} Bd6 {[%emt 0:00:
00]} 98. Ke4 {[%emt 0:00:04]} Bc7 {[%emt 0:00:00]} 99. Be5 {[%emt 0:01:15]} Bb6
{[%emt 0:00:00]} 100. Bd6 {[%emt 0:01:28]} Bd8 {[%emt 0:00:00]} 101. Kd5 {
[%emt 0:00:18]} Bf6 {[%emt 0:00:00]} 102. Be5 {[%emt 0:00:07]} Bd8 {[%emt 0:00:
00]} 103. Kc6 {[%emt 0:00:36]} Ba5 {[%emt 0:00:00]} 104. Bd4 {[%emt 0:00:25]}
Bd2 {[%emt 0:00:00]} 105. Be5 {[%emt 0:00:15]} Ba5 {[%emt 0:00:00]} 106. Kb5 {
[%emt 0:00:13]} Bd2 {[%emt 0:00:00]} 107. Bd6 {[%emt 0:00:23]} Be3 {[%emt 0:00:
00]} 108. Kc4 {[%emt 0:00:06]} Bb6 {[%emt 0:00:00]} 109. Be5 {[%emt 0:00:05]}
Be3 {[%emt 0:00:00]} 110. Bd6 {[%emt 0:00:24]} Bb6 {[%emt 0:00:00]} 111. Be5 {
[%emt 0:00:32]} Be3 {[%emt 0:00:00]} 112. Bd4 {[%emt 0:00:09]} Bf4 {[%emt 0:00:
00]} 113. Kd5 {[%emt 0:00:11]} Bd2 {[%emt 0:00:00]} 114. Bc5 {[%emt 0:00:13]}
Bf4 {[%emt 0:00:00]} 115. Bd6 {[%emt 0:00:06]} Bd2 {[%emt 0:00:00]} 116. Ke4 {
[%emt 0:00:06]} Ba5 {[%emt 0:00:00]} 117. Be7 {[%emt 0:00:25]} Bd2 {[%emt 0:00:
00]} 118. Bc5 {[%emt 0:00:40]} Bc3 {[%emt 0:00:00]} 119. Be3 {[%emt 0:00:12]}
Bb4 {[%emt 0:00:03]} 120. Bxg5 {[%emt 0:00:04]} 1/2-1/2

[Event "44th Chess Olympiad Open 2022"]
[Site "Chennai"]
[Date "2022.08.08"]
[Round "10.30"]
[White "Lim, Zhuo Ren"]
[Black "Priasmoro, Novendra"]
[Result "0-1"]
[WhiteElo "2318"]
[BlackElo "2494"]
[Annotator "RC"]
[PlyCount "91"]
[EventDate "2022.??.??"]
[TimeControl "60"]

1. Nf3 {[%emt 0:00:05]} Nf6 {[%emt 0:00:09]} 2. g3 {[%emt 0:00:10]} g6 {
[%emt 0:00:07]} 3. Bg2 {[%emt 0:00:08]} Bg7 {[%emt 0:00:05]} 4. d4 {[%emt 0:00:
00]} O-O {[%emt 0:00:07]} 5. c4 {[%emt 0:00:06]} d6 {[%emt 0:00:15]} 6. O-O {
[%emt 0:00:20]} Nc6 {[%emt 0:00:05]} 7. Nc3 {[%emt 0:00:12]} e5 {[%emt 0:00:08]
} 8. dxe5 {[%emt 0:01:19]} dxe5 {[%emt 0:00:08]} 9. Bg5 {[%emt 0:00:16]} Be6 {
[%emt 0:00:06]} 10. Qa4 {[%emt 0:02:31]} h6 {[%emt 0:00:07]} 11. Rad1 {[%emt 0:
00:00]} Qe8 {[%emt 0:00:07]} 12. Bxf6 {[%emt 0:00:48]} Bxf6 {[%emt 0:00:06]}
13. Nd5 {[%emt 0:01:06]} Bd8 {[%emt 0:00:22]} 14. Qb3 {[%emt 0:04:55]} Bc8 {
[%emt 0:07:52]} 15. c5 {[%emt 0:05:12]} Kh7 {[%emt 0:02:04]} 16. e4 {[%emt 0:
00:00]} Bg4 {[%emt 0:07:41]} 17. Qxb7 {[%emt 0:02:09]} Rb8 {[%emt 0:00:14]} 18.
Qa6 {[%emt 0:00:09]} Rxb2 {[%emt 0:09:02]} 19. Rb1 {[%emt 0:05:07]} Rxb1 {
[%emt 0:01:51]} 20. Rxb1 {[%emt 0:00:04]} Qe6 {[%emt 0:00:24]} 21. Ne1 {
[%emt 0:06:52]} Nd4 {[%emt 0:09:50]} 22. Qxe6 {[%emt 0:07:56]} Bxe6 {[%emt 0:
00:00]} 23. Rb7 {[%emt 0:04:45]} c6 {[%emt 0:00:52]} 24. Rxa7 {[%emt 0:05:01]}
cxd5 {[%emt 0:03:00]} 25. exd5 {[%emt 0:01:54]} Bf5 {[%emt 0:00:05]} 26. Nf3 {
[%emt 0:01:00]} Kg8 {[%emt 0:09:39]} 27. g4 {[%emt 0:03:40]} Bxg4 {[%emt 0:00:
00]} 28. Nxe5 {[%emt 0:00:10]} Bf5 {[%emt 0:00:03]} 29. h3 {[%emt 0:05:26]} Bg5
{[%emt 0:01:51]} 30. d6 {[%emt 0:05:32]} Re8 {[%emt 0:01:10]} 31. Ra8 {[%emt 0:
00:00]} Kf8 {[%emt 0:06:58]} 32. a4 {[%emt 0:08:37]} Bf6 {[%emt 0:02:54]} 33.
Ng4 {[%emt 0:03:54]} Bxg4 {[%emt 0:08:00]} 34. hxg4 {[%emt 0:00:22]} Rxa8 {
[%emt 0:00:03]} 35. Bxa8 {[%emt 0:00:06]} Be5 {[%emt 0:00:34]} 36. Bd5 {
[%emt 0:03:48]} Ne2+ {[%emt 0:04:04]} 37. Kf1 {[%emt 0:00:24]} Nc3 {[%emt 0:00:
00]} 38. d7 {[%emt 0:01:23]} Bc7 {[%emt 0:03:53]} 39. Bc6 {[%emt 0:00:27]} Ke7
{[%emt 0:00:06]} 40. f3 {[%emt 0:03:37]} Na2 {[%emt 0:00:46]} 41. Ke2 {[%emt 0:
00:00]} Nc1+ {[%emt 0:30:33]} 42. Ke3 {[%emt 0:03:18]} Nb3 {[%emt 0:00:06]} 43.
f4 {[%emt 0:00:23]} Nxc5 {[%emt 0:00:05]} 44. f5 {[%emt 0:00:04]} gxf5 {
[%emt 0:00:28]} 45. gxf5 {[%emt 0:00:03]} Nxd7 {[%emt 0:00:07]} 46. Kd4 {
[%emt 0:00:34]} 0-1

[Event "44th Chess Olympiad Open 2022"]
[Site "Chennai"]
[Date "2022.08.08"]
[Round "10.30"]
[White "Tan, Jun Ying"]
[Black "Ervan, Mohamad"]
[Result "0-1"]
[WhiteElo "2191"]
[BlackElo "2402"]
[Annotator "RC"]
[PlyCount "112"]
[EventDate "2022.??.??"]
[TimeControl "60"]

1. d4 {[%emt 0:00:16]} Nf6 {[%emt 0:00:18]} 2. c4 {[%emt 0:00:20]} e6 {[%emt 0:
00:00]} 3. Nc3 {[%emt 0:00:07]} Bb4 {[%emt 0:00:18]} 4. e3 {[%emt 0:00:06]} O-O
{[%emt 0:00:32]} 5. Nge2 {[%emt 0:00:07]} c6 {[%emt 0:00:27]} 6. a3 {[%emt 0:
00:00]} Ba5 {[%emt 0:00:12]} 7. c5 {[%emt 0:00:11]} d5 {[%emt 0:00:36]} 8. cxd6
{[%emt 0:00:05]} Qxd6 {[%emt 0:00:07]} 9. b4 {[%emt 0:00:03]} Bc7 {[%emt 0:00:
00]} 10. g3 {[%emt 0:00:07]} a5 {[%emt 0:05:00]} 11. b5 {[%emt 0:00:11]} cxb5 {
[%emt 0:03:58]} 12. Bg2 {[%emt 0:00:11]} Bd7 {[%emt 0:01:36]} 13. O-O {[%emt 0:
00:00]} Na6 {[%emt 0:08:20]} 14. e4 {[%emt 0:14:05]} e5 {[%emt 0:03:24]} 15.
dxe5 {[%emt 0:02:05]} Qxe5 {[%emt 0:00:32]} 16. Be3 {[%emt 0:16:56]} Bc6 {
[%emt 0:10:08]} 17. Bd4 {[%emt 0:15:35]} Qe6 {[%emt 0:07:00]} 18. Re1 {[%emt 0:
00:00]} Rfe8 {[%emt 0:07:10]} 19. Nf4 {[%emt 0:09:44]} Bxf4 {[%emt 0:19:37]}
20. gxf4 {[%emt 0:00:03]} b4 {[%emt 0:00:36]} 21. axb4 {[%emt 0:00:33]} Nxb4 {
[%emt 0:07:37]} 22. Qe2 {[%emt 0:02:26]} Qg4 {[%emt 0:03:02]} 23. Qxg4 {
[%emt 0:01:49]} Nxg4 {[%emt 0:00:03]} 24. Re2 {[%emt 0:00:34]} Nd3 {[%emt 0:00:
00]} 25. f3 {[%emt 0:07:45]} Nxf4 {[%emt 0:01:09]} 26. Rea2 {[%emt 0:01:04]}
Ne5 {[%emt 0:01:13]} 27. Rxa5 {[%emt 0:01:08]} Rxa5 {[%emt 0:00:50]} 28. Rxa5 {
[%emt 0:00:01]} f6 {[%emt 0:01:32]} 29. Bxe5 {[%emt 0:05:51]} Rxe5 {[%emt 0:00:
00]} 30. Ra8+ {[%emt 0:00:17]} Kf7 {[%emt 0:00:08]} 31. Bf1 {[%emt 0:00:23]}
Rc5 {[%emt 0:01:09]} 32. Ra3 {[%emt 0:01:04]} Ke6 {[%emt 0:07:01]} 33. Kf2 {
[%emt 0:02:38]} Kd6 {[%emt 0:00:26]} 34. Ke3 {[%emt 0:04:35]} Ne6 {[%emt 0:00:
00]} 35. f4 {[%emt 0:00:00]} Rh5 {[%emt 0:01:22]} 36. Ra2 {[%emt 0:00:00]} Rh4
{[%emt 0:00:53]} 37. Rd2+ {[%emt 0:01:19]} Ke7 {[%emt 0:00:43]} 38. Nd5+ {
[%emt 0:01:44]} Bxd5 {[%emt 0:01:05]} 39. exd5 {[%emt 0:00:01]} Nxf4 {[%emt 0:
00:00]} 40. d6+ {[%emt 0:01:12]} Kd8 {[%emt 0:00:18]} 41. Bb5 {[%emt 0:07:02]}
Rh5 {[%emt 0:01:27]} 42. Bc4 {[%emt 0:08:57]} Ne6 {[%emt 0:01:22]} 43. Rb2 {
[%emt 0:09:04]} Re5+ {[%emt 0:00:29]} 44. Kd3 {[%emt 0:00:20]} Kc8 {[%emt 0:00:
00]} 45. Rb6 {[%emt 0:04:40]} Nd8 {[%emt 0:03:00]} 46. Bg8 {[%emt 0:02:27]} Rh5
{[%emt 0:00:41]} 47. Kd4 {[%emt 0:05:23]} Rxh2 {[%emt 0:00:31]} 48. Bd5 {
[%emt 0:00:12]} Rh4+ {[%emt 0:03:34]} 49. Kc5 {[%emt 0:00:27]} Rh5 {[%emt 0:00:
00]} 50. Kd4 {[%emt 0:00:39]} Rg5 {[%emt 0:00:22]} 51. Rb2 {[%emt 0:01:36]} Kd7
{[%emt 0:00:12]} 52. Kc5 {[%emt 0:00:36]} h5 {[%emt 0:00:34]} 53. Re2 {[%emt 0:
00:00]} b6+ {[%emt 0:00:08]} 54. Kc4 {[%emt 0:00:27]} Kxd6 {[%emt 0:00:10]} 55.
Rd2 {[%emt 0:00:04]} b5+ {[%emt 0:00:11]} 56. Kxb5 {[%emt 0:00:44]} Rxd5+ {
[%emt 0:00:06]} 0-1